bitfinex-derivatives/quotes_ETHF0:USTF0_20250403
["timestamp","ask_amount","ask_price","bid_price","bid_amount"]
[1743663963828,1.09898,1820.0,1819.9,4.3068]
[1743663964028,2.48664,1820.1,1820.0,1.09898]
[1743663964634,2.48667,1820.1,1820.0,1.09898]
[1743663965930,1.09898,1820.0,1819.9,2.56543]
[1743663966132,3.23408,1820.0,1819.9,1.09903]
[1743663966336,2.1351,1820.0,1819.9,1.09903]
[1743663966533,3.23408,1820.0,1819.9,1.09903]
[1743663968338,9.62884,1820.3,1820.0,2.74737]
[1743663968339,3.2078,1820.3,1820.0,2.74737]
[1743663968637,1.5098,1820.3,1820.2,1.09886]
[1743663968835,1.09875,1820.4,1820.3,1.0988]
[1743663969134,1.0988,1820.3,1820.2,2.58593]
[1743663969340,1.0988,1820.3,1820.2,1.09883]
[1743663969534,1.0988,1820.3,1820.2,2.58593]
[1743663969732,1.09886,1820.2,1820.1,1.85172]
[1743663969933,2.60866,1820.2,1820.1,1.85172]
[1743663970135,1.09904,1819.9,1819.8,1.78594]
[1743663970330,1.09904,1819.9,1819.8,1.09904]
[1743663970531,3.33733,1820.0,1819.9,1.09904]
[1743663970736,2.21123574,1820.0,1819.9,1.09904]
[1743663971843,3.31021574,1820.0,1819.9,1.09904]
[1743663972339,1.09904,1819.9,1819.8,2.47656]
[1743663972542,1.09904,1819.9,1819.8,1.09906]
[1743663972734,2.57734,1819.9,1819.8,1.09906]
[1743663974639,1.4783,1819.9,1819.8,1.09906]
[1743663975639,1.4783,1819.9,1819.8,2.60166]
[1743663975839,2.57734,1819.9,1819.8,1.5026]
[1743663976042,2.57734,1819.9,1819.7,1.10736605]
[1743663976043,1.0991,1819.8,1819.7,1.10736605]
[1743663976237,2.607,1819.8,1819.7,1.10736605]
[1743663977044,1.5079,1819.8,1819.7,1.10736605]
[1743663977241,2.607,1819.8,1819.7,1.10736605]
[1743663978643,1.5079,1819.8,1819.7,1.10736605]
[1743663978844,2.607,1819.8,1819.7,1.10736605]
[1743663979543,1.5079,1819.8,1819.7,1.10736605]
[1743663979743,2.607,1819.8,1819.7,1.10736605]
[1743663987643,2.607,1819.8,1819.7,0.00824605]
[1743663987850,2.607,1819.8,1819.2,2.74854]
[1743663987851,1.09945,1819.3,1819.2,1.09942]
[1743663988054,1.09953,1819.2,1819.1,1.09951]
[1743663988345,2.48893,1819.2,1819.1,1.09951]
[1743663988552,1.0997,1818.9,1818.8,1.09969]
[1743663989246,0.00824604,1819.0,1818.9,1.09965]
[1743663989449,0.00824604,1819.0,1818.9,7.97345]
[1743663989752,1.4277,1819.5,1818.9,7.97345]
[1743663989753,2.1408,1819.5,1819.4,1.09935]
[1743663990148,1.0992,1819.7,1819.3,4.88082]
[1743663990453,1.09925,1819.6,1819.5,1.09925]
[1743663991445,2.55245,1819.6,1819.5,1.09925]
[1743663992453,1.09941,1819.3,1819.2,1.09945]
[1743663993150,1.09941,1819.3,1819.2,2.50305]
[1743663993451,2.59001,1819.3,1819.2,2.50305]
[1743663993649,1.4906,1819.3,1819.2,2.50305]
[1743663994452,2.59001,1819.3,1819.2,2.50305]
[1743663994751,1.4906,1819.3,1819.2,2.50305]
[1743663999056,1.09947,1819.2,1819.1,1.09949]
[1743663999253,1.09956,1819.1,1819.0,1.09954]
[1743664000256,2.58986,1819.1,1819.0,1.09954]
[1743664001752,1.09959,1819.0,1818.9,1.09961]
[1743664001953,1.09971,1818.8,1818.7,1.10798605]
[1743664002254,1.8112,1818.9,1818.8,1.09971]
[1743664002453,3.186,1818.9,1818.8,1.09971]
[1743664002655,3.186,1818.9,1818.7,1.51324605]
[1743664002656,1.09971,1818.8,1818.7,2.61296605]
[1743664002855,2.47451,1818.8,1818.7,2.61296605]
[1743664003253,1.3748,1818.8,1818.7,2.61296605]
[1743664003459,1.3748,1818.8,1818.7,3.30586605]
[1743664003661,2.47451,1818.8,1818.7,3.30586605]
[1743664004160,1.3748,1818.8,1818.7,3.30586605]
[1743664004459,1.3748,1818.8,1818.7,6.51366605]
[1743664005153,2.47451,1818.8,1818.7,6.51366605]
[1743664005551,2.47451,1818.8,1818.7,3.30586605]
[1743664005752,2.47451,1818.8,1818.7,1.80086605]
[1743664005955,2.47451,1818.8,1818.7,1.10796605]
[1743664008055,1.3748,1818.8,1818.7,1.10796605]
[1743664010166,1.09966,1818.9,1818.8,1.09971]
[1743664010366,1.09966,1818.9,1818.8,3.22431]
[1743664010564,1.09965,1818.9,1818.8,3.22426]
[1743664010762,1.09942,1819.3,1818.8,7.8324]
[1743664010967,1.09936,1819.5,1819.4,1.09931]
[1743664011166,6.1479,1819.6,1819.5,1.09929]
[1743664011658,7.24713,1819.6,1819.5,1.09929]
[1743664012361,7.24713,1819.6,1819.5,2.47339]
[1743664012660,1.09915,1819.8,1819.5,1.3741]
[1743664012863,0.7115,1819.9,1819.6,3.2078]
[1743664013171,1.0991,1819.8,1819.7,2.47322]
[1743664013360,1.4508,1819.8,1819.7,2.47322]
[1743664013559,2.5499,1819.8,1819.7,2.47322]
[1743664013758,1.4508,1819.8,1819.7,2.47322]
[1743664014059,0.7115,1819.9,1819.8,1.0991]
[1743664014764,2.1623,1819.9,1819.8,1.0991]
[1743664015463,4.30671,1820.2,1819.7,4.12189]
[1743664015663,1.07184574,1820.2,1820.1,1.09892]
[1743664016063,2.52264574,1820.2,1820.1,1.09892]
[1743664016570,1.4508,1820.2,1820.1,1.09892]
[1743664016960,2.54966,1820.2,1820.1,2.58492]
[1743664017360,1.4508,1820.2,1820.1,2.58492]
[1743664017760,2.54966,1820.2,1820.1,2.58492]
[1743664017965,1.4508,1820.2,1820.1,2.58492]
[1743664018663,2.54966,1820.2,1820.1,2.58492]
[1743664021567,1.4508,1820.2,1820.1,2.58492]
[1743664021767,2.54966,1820.2,1820.1,2.58492]
[1743664021967,1.79295,1820.3,1820.2,1.09886]
[1743664022169,1.79295,1820.3,1820.2,2.58096]
[1743664022361,1.4557,1820.4,1820.2,1.4821]
[1743664022564,1.09869,1820.5,1820.4,1.09869]
[1743664023171,2.56559,1820.5,1820.4,1.09869]
[1743664023371,1.4669,1820.5,1820.4,1.09869]
[1743664023766,1.4669,1820.5,1820.3,2.55246]
[1743664023971,1.09874,1820.4,1820.3,2.55246]
[1743664024172,1.09874,1820.4,1820.3,1.4537]
[1743664024573,1.0988,1820.3,1820.2,1.09882]
[1743664024770,1.09886,1820.2,1820.1,1.4537]
[1743664024971,5.4206,1820.2,1819.9,1.09901]
[1743664025171,0.7234,1820.1,1820.0,1.09898]
[1743664025371,2.1989,1820.1,1820.0,1.09898]
[1743664025572,1.4755,1820.1,1820.0,1.09898]
[1743664025772,1.84479,1820.2,1820.1,1.09892]
[1743664025967,3.9312,1820.4,1820.0,3.637]
[1743664025968,3.2078,1820.4,1820.0,3.637]
[1743664026182,1.09872,1820.5,1820.4,1.09871]
[1743664026675,2.57422,1820.5,1820.4,1.09871]
[1743664026863,2.57422,1820.5,1820.3,2.1247]
[1743664026864,1.09874,1820.4,1820.3,3.22347]
[1743664027068,2.57424,1820.4,1820.3,3.22347]
[1743664028573,1.4755,1820.4,1820.3,3.22347]
[1743664029072,2.57424,1820.4,1820.3,3.22347]
[1743664029276,1.09884,1820.3,1820.2,1.09882]
[1743664029480,2.51404,1820.3,1820.2,1.09882]
[1743664031577,1.4152,1820.3,1820.2,1.09882]
[1743664031777,2.514,1820.3,1820.2,1.09882]
[1743664031972,1.09892,1820.1,1820.0,1.09895]
[1743664032175,2.8786,1820.2,1819.9,3.2078]
[1743664032374,1.4286,1820.0,1819.9,5.80824]
[1743664032669,0.7211,1820.2,1820.1,1.09892]
[1743664033283,0.7211,1820.2,1820.0,1.5014]
[1743664033284,2.52743,1820.3,1820.2,1.09886]
[1743664033472,1.0989,1820.2,1820.1,1.09887]
[1743664033671,1.09898,1820.1,1820.0,1.09895]
[1743664033870,1.09898,1820.0,1819.9,1.099]
[1743664034073,3.97758,1820.0,1819.9,1.099]
[1743664034275,2.1497,1820.0,1819.9,1.099]
[1743664034776,0.7211,1820.0,1819.9,2.5393]
[1743664034974,1.09897,1820.1,1820.0,1.09898]
[1743664035176,3.32901,1820.2,1820.1,1.09892]
[1743664035372,4.30662,1820.3,1820.2,1.09886]
[1743664035669,1.09876,1820.4,1820.3,1.09874]
[1743664035872,2.61526,1820.4,1820.3,1.09874]
[1743664036374,1.09889,1820.2,1820.1,1.09887]
[1743664037169,2.61539,1820.2,1820.1,1.09887]
[1743664037569,1.09892,1820.1,1820.0,4.73796]
[1743664037777,3.29172,1820.1,1820.0,1.09896]
[1743664039472,4.30664,1820.3,1820.2,1.09886]
[1743664040072,5.77724,1820.3,1820.2,1.09886]
[1743664040275,3.2078,1820.3,1820.2,1.81056]
[1743664040480,3.2078,1820.3,1820.2,2.56076]
[1743664040677,0.7222,1820.4,1820.3,1.0988]
[1743664040983,1.4706,1820.5,1820.4,1.09874]
[1743664041780,3.9652,1820.7,1820.6,1.09862]
[1743664041781,0.7574,1820.7,1820.6,1.09862]
[1743664041983,2.2093,1820.7,1820.6,1.09862]
[1743664043276,3.30786,1820.7,1820.6,1.09862]
[1743664044079,1.09875,1820.4,1820.3,1.09875]
[1743664044280,1.4022,1820.6,1820.3,1.09875]
[1743664044483,1.09871,1820.5,1820.4,1.09871]
[1743664044684,2.50085,1820.6,1820.5,1.09868]
[1743664044883,1.09871,1820.5,1820.4,1.0987]
[1743664045081,2.50091,1820.5,1820.4,2.598]
[1743664045979,1.4022,1820.5,1820.4,2.598]
[1743664046386,1.09866,1820.6,1820.4,2.598]
[1743664046387,1.09865,1820.6,1820.5,1.09864]
[1743664046581,2.50085,1820.6,1820.5,1.09864]
[1743664050482,2.50085,1820.6,1820.4,2.59801]
[1743664050483,1.09868,1820.5,1820.4,2.59801]
[1743664050681,2.59148,1820.5,1820.4,1.09871]
[1743664051788,1.0988,1820.3,1820.2,4.03302]
[1743664052088,1.09898,1820.1,1820.0,1.09894]
[1743664052681,2.59178,1820.1,1820.0,1.09894]
[1743664055795,1.4928,1820.1,1820.0,1.09894]
[1743664056291,2.59172,1820.1,1820.0,1.09894]
[1743664056893,1.4928,1820.1,1820.0,1.09894]
[1743664057695,1.81541,1820.2,1820.1,1.09892]
[1743664057892,0.7165,1820.2,1820.1,1.09892]
[1743664058199,9.1718,1820.7,1820.5,1.09865]
[1743664058497,3.31376,1820.6,1820.5,1.09865]
[1743664058686,2.2151,1820.6,1820.5,1.09865]
[1743664059197,3.31372,1820.6,1820.5,1.09865]
[1743664060785,0.6941,1820.6,1820.5,1.09865]
[1743664060992,4.3064,1820.7,1820.6,1.09862]
[1743664061502,5.7321,1820.7,1820.6,1.09862]
[1743664062092,2.5243,1820.7,1820.6,1.09862]
[1743664062293,8.71,1821.0,1820.6,1.09862]
[1743664062294,1.09843,1821.0,1820.9,1.09844]
[1743664062500,3.36734,1821.0,1820.9,1.09844]
[1743664063098,6.8318,1821.1,1820.9,1.09844]
[1743664063099,1.09837,1821.1,1820.9,1.09844]
[1743664063399,3.36717,1821.2,1821.1,1.09832]
[1743664064094,23.57491027,1821.5,1821.3,1.0982]
[1743664064296,24.67301027,1821.5,1821.4,1.09814]
[1743664064499,1.09815,1821.4,1821.3,1.09816]
[1743664064694,1.09815,1821.4,1821.2,2.1224]
[1743664064695,1.0982,1821.3,1821.2,3.22062]
[1743664064896,2.61139,1821.4,1821.3,1.0982]
[1743664065296,1.5132,1821.4,1821.3,1.0982]
[1743664065498,1.5132,1821.4,1821.3,2.5539]
[1743664075511,1.5132,1821.4,1821.3,1.0982]
[1743664075512,2.61134,1821.4,1821.3,1.0982]
[1743664075712,1.09832,1821.1,1821.0,5.00983]
[1743664076004,1.0983,1821.2,1821.1,1.0983]
[1743664076400,1.8579,1821.2,1821.1,1.0983]
[1743664078205,1.4572,1821.3,1821.2,1.09826]
[1743664078613,1.4294,1821.5,1821.4,1.09814]
[1743664078812,3.93468,1821.5,1821.4,1.09814]
[1743664079402,3.93468,1821.5,1821.4,2.57864]
[1743664079913,1.09814,1821.4,1821.3,1.78617]
[1743664080110,1.4072,1821.4,1821.3,1.09817]
[1743664081603,2.50534,1821.4,1821.3,1.09817]
[1743664082104,1.4072,1821.4,1821.3,1.09817]
[1743664083010,2.50534,1821.4,1821.3,1.09817]
[1743664083411,1.4072,1821.4,1821.3,1.09817]
[1743664083616,1.4294,1821.5,1821.4,1.09814]
[1743664083905,2.8567,1821.5,1821.4,1.09814]
[1743664084108,3.95478,1821.5,1821.4,1.09814]
[1743664085909,5.964,1821.9,1821.8,1.0979]
[1743664086209,2.1636,1821.9,1821.8,1.0979]
[1743664086808,0.7363,1821.9,1821.8,1.0979]
[1743664087508,0.7363,1821.9,1821.8,2.5013]
[1743664088708,27.88047027,1822.1,1822.0,1.09778]
[1743664088709,23.57491027,1822.1,1822.0,1.09778]
[1743664089115,2.1309,1822.2,1822.1,1.09772]
[1743664089303,3.22856,1822.2,1822.1,1.09772]
[1743664090218,0.7363,1822.2,1822.1,1.09772]
[1743664090507,3.32748,1822.4,1822.1,1.09772]
[1743664090710,2.2299,1822.4,1822.3,1.0976]
[1743664090913,0.6939,1822.5,1822.4,1.09754]
[1743664091307,2.56682,1822.6,1822.5,1.09748]
[1743664091510,3.26072,1822.6,1822.5,1.09748]
[1743664091713,2.1633,1822.6,1822.5,1.09748]
[1743664091906,3.26072,1822.6,1822.5,1.09748]
[1743664092517,2.1633,1822.6,1822.5,1.09748]
[1743664092819,3.26072,1822.6,1822.5,1.09748]
[1743664093117,2.1633,1822.6,1822.5,1.09748]
[1743664093515,0.7251,1822.9,1822.8,1.0973]
[1743664093713,2.1169,1822.9,1822.8,1.0973]
[1743664094018,3.21414,1822.9,1822.8,1.0973]
[1743664094620,1.0973,1822.8,1822.7,2.48032]
[1743664094919,1.09738,1822.7,1822.6,1.0974]
[1743664095221,1.84468,1822.7,1822.6,1.0974]
[1743664095417,1.09743,1822.6,1822.5,1.09743]
[1743664095608,1.3914,1822.6,1822.5,1.09743]
[1743664098319,0.7473,1822.7,1822.6,1.09742]
[1743664098515,0.7251,1822.9,1822.8,1.0973]
[1743664098722,1.4502,1822.9,1822.8,1.0973]
[1743664099328,2.54744,1822.9,1822.8,2.5611]
[1743664099821,1.0973,1822.8,1822.7,1.85091]
[1743664100013,2.5475,1822.8,1822.7,0.7536]
[1743664100222,1.09736,1822.7,1822.6,1.09738]
[1743664100413,1.4502,1822.7,1822.6,1.09738]
[1743664100619,2.54756,1822.7,1822.6,2.56118]
[1743664100918,2.54756,1822.7,1822.6,1.09738]
[1743664101319,1.09748,1822.5,1822.4,1.85108]
[1743664101523,1.09764,1822.3,1822.2,1.09762]
[1743664101822,1.4298,1822.4,1822.3,1.0976]
[1743664102020,2.52734,1822.4,1822.3,1.0976]
[1743664102216,1.0976,1822.3,1822.2,2.57952]
[1743664102524,1.09768,1822.2,1822.1,1.09769]
[1743664102723,1.82968,1822.2,1822.1,1.09769]
[1743664103222,127.17732549,1828.2,1822.1,1.09769]
[1743664103223,1.09756,1822.4,1822.3,1.09757]
[1743664103425,1.09756,1822.4,1822.1,1.09769]
[1743664103426,1.0976,1822.3,1822.2,1.09762]
[1743664103919,1.09766,1822.2,1822.1,1.09767]
[1743664104126,3.24695,1822.3,1822.1,1.09767]
[1743664104425,1.4298,1822.2,1822.1,1.09767]
[1743664104813,1.4298,1822.2,1822.0,3.31105]
[1743664105129,1.4298,1822.2,1822.0,1.09775]
[1743664105130,0.7536,1822.1,1822.0,1.09775]
[1743664105627,0.7536,1822.1,1821.9,0.00824605]
[1743664105828,2.47388,1822.0,1821.9,1.10608605]
[1743664106621,1.3761,1822.0,1821.9,1.10608605]
[1743664108121,2.47388,1822.0,1821.9,1.10608605]
[1743664110233,1.85134,1822.1,1822.0,1.09778]
[1743664110421,1.09778,1822.0,1821.9,1.10603605]
[1743664111828,2.57108,1822.0,1821.9,1.10603605]
[1743664112028,5.77888,1822.0,1821.9,0.00824605]
[1743664112230,2.57108,1822.0,1821.9,0.00824605]
[1743664113131,5.77888,1822.0,1821.9,0.00824605]
[1743664114232,9.41888,1822.0,1821.9,0.00824605]
[1743664117135,1.09801,1821.7,1821.6,1.098]
[1743664117625,1.09801,1821.7,1821.4,4.90303]
[1743664117626,1.09814,1821.4,1821.3,1.09815]
[1743664118228,1.09814,1821.4,1821.1,5.95356]
[1743664118229,1.09821,1821.3,1821.2,1.10646605]
[1743664118434,3.23028,1821.4,1821.3,1.0982]
[1743664118635,1.84388,1821.4,1821.3,1.0982]
[1743664119235,1.0982,1821.3,1821.2,1.10647605]
[1743664119729,1.0982,1821.3,1821.2,0.00824605]
[1743664120634,3.21604605,1821.5,1821.2,0.00824605]
[1743664120838,7.95718605,1821.5,1821.3,1.09815]
[1743664121028,6.85904605,1821.5,1821.3,1.09815]
[1743664121228,1.09814,1821.4,1821.3,1.09815]
[1743664123830,1.0982,1821.3,1821.2,2.49335605]
[1743664124025,1.0982,1821.3,1821.2,1.10645605]
[1743664124231,1.0982,1821.3,1821.2,0.00824605]
[1743664124935,1.0982,1821.3,1821.2,1.10650605]
[1743664126836,4.306,1821.3,1821.2,0.00824605]
[1743664127138,4.306,1821.3,1821.2,1.10650605]
[1743664128743,4.306,1821.3,1821.2,0.00824605]
[1743664129045,4.306,1821.3,1821.2,1.10650605]
[1743664130746,4.306,1821.3,1821.2,0.00824605]
[1743664131041,4.306,1821.3,1821.2,1.10650605]
[1743664131945,4.306,1821.3,1821.2,0.00824605]
[1743664132840,6.806,1821.3,1821.2,0.00824605]
[1743664134144,4.306,1821.3,1821.2,0.00824605]
[1743664135542,4.9986,1821.3,1821.2,0.00824605]
[1743664138446,1.4768,1821.4,1821.3,1.09814]
[1743664138447,3.63,1821.4,1821.3,1.09814]
[1743664138637,3.63,1821.4,1821.3,1.83214]
[1743664138840,1.09819,1821.4,1821.3,1.83214]
[1743664139152,1.09819,1821.4,1821.3,3.33644]
[1743664139442,0.00824605,1821.5,1821.4,1.09814]
[1743664139648,0.00824605,1821.5,1821.4,2.60244]
[1743664140545,0.00824605,1821.5,1821.4,5.10244]
[1743664141548,0.00824605,1821.5,1821.4,2.60244]
[1743664145850,0.00824605,1821.5,1821.4,5.10244]
[1743664146856,0.00824605,1821.5,1821.4,2.60244]
[1743664147261,1.10632605,1821.5,1821.4,1.5043]
[1743664147457,1.09814,1821.4,1821.3,1.83215]
[1743664147757,1.0982,1821.3,1821.2,0.00824605]
[1743664148056,1.8122,1821.3,1821.2,0.00824605]
[1743664148248,3.3213,1821.3,1821.2,0.00824605]
[1743664148748,3.3213,1821.3,1821.2,1.10650605]
[1743664149260,3.3213,1821.3,1821.2,0.00824605]
[1743664149850,5.8213,1821.3,1821.2,0.00824605]
[1743664150050,3.3213,1821.3,1821.2,0.00824605]
[1743664150251,5.8213,1821.3,1821.2,0.00824605]
[1743664153250,1.0985,1820.8,1820.7,1.80341]
[1743664153453,1.09856,1820.7,1820.6,2.51877]
[1743664153654,2.58206,1820.7,1820.6,2.51877]
[1743664154254,2.58206,1820.7,1820.6,1.09857]
[1743664154759,1.09862,1820.6,1820.5,3.21617605]
[1743664154961,2.58212,1820.6,1820.5,1.79597605]
[1743664155159,2.58212,1820.6,1820.5,1.10687605]
[1743664155855,2.58212,1820.6,1820.5,2.52707605]
[1743664157255,1.4835,1820.6,1820.5,2.52707605]
[1743664157457,2.58212,1820.6,1820.5,2.52707605]
[1743664157955,3.631,1820.7,1820.5,1.42844605]
[1743664158160,2.56765,1820.9,1820.6,1.4397]
[1743664158361,5.03323,1821.0,1820.9,1.09844]
[1743664158564,1.09844,1820.9,1820.8,1.09846]
[1743664158762,1.09844,1820.9,1820.8,2.53816]
[1743664158966,1.09844,1820.9,1820.8,1.4397]
[1743664159254,2.56764,1820.9,1820.8,2.5382]
[1743664160750,2.56764,1820.9,1820.8,1.0985]
[1743664163261,3.9348,1821.0,1820.7,1.4307]
[1743664163469,6.8328,1821.2,1821.1,1.09832]
[1743664163666,3.2078,1821.2,1821.1,1.09832]
[1743664163958,3.19869639,1821.2,1821.1,1.09832]
[1743664164164,6.21422,1821.3,1821.2,1.09826]
[1743664164365,8.65068,1821.4,1821.3,1.0982]
[1743664164560,8.65064,1821.4,1821.3,1.0982]
[1743664164766,1.0982,1821.3,1821.2,2.51781]
[1743664164966,2.5862,1821.3,1821.2,2.51781]
[1743664167766,1.09826,1821.2,1821.1,1.85846]
[1743664167980,1.4458,1821.2,1821.1,1.85846]
[1743664168158,7.5525,1821.4,1821.3,1.0982]
[1743664168159,3.9195,1821.4,1821.3,1.0982]
[1743664168465,0.00824605,1821.5,1821.4,1.09814]
[1743664169063,0.00824605,1821.5,1821.4,2.55934]
[1743664170675,1.10632605,1821.5,1821.4,1.09814]
[1743664170865,6.14602605,1821.5,1821.4,1.09814]
[1743664171064,6.85542605,1821.5,1821.4,1.09814]
[1743664171874,1.09814,1821.4,1821.3,1.09815]
[1743664172066,3.28644,1821.4,1821.3,1.09815]
[1743664172669,1.09826,1821.2,1821.1,0.7464]
[1743664172967,1.09826,1821.2,1821.1,1.84472]
[1743664173567,2.55944,1821.3,1821.2,1.09826]
[1743664173769,1.4612,1821.3,1821.2,1.09826]
[1743664174066,5.03308,1821.4,1821.3,1.0982]
[1743664174569,1.0982,1821.3,1821.2,2.61652]
[1743664174768,2.4904,1821.3,1821.2,2.61652]
[1743664178373,2.4904,1821.3,1821.2,1.09822]
[1743664178874,2.4904,1821.3,1821.2,2.52352]
[1743664185183,2.74581,1821.2,1820.7,5.49269]
[1743664185479,1.09849,1820.9,1820.8,1.09844]
[1743664185684,1.09841,1821.0,1820.9,1.09838]
[1743664185874,3.20511,1821.0,1820.9,1.09838]
[1743664186079,1.09844,1820.9,1820.8,2.47545]
[1743664186380,2.51254,1820.9,1820.8,1.09845]
[1743664186879,2.51254,1820.9,1820.8,2.51235]
[1743664187081,2.51254,1820.9,1820.8,1.09845]
[1743664187282,3.23354,1820.9,1820.8,1.09845]
[1743664188283,2.51254,1820.9,1820.8,2.51235]
[1743664189181,2.51254,1820.9,1820.8,2.5124]
[1743664190075,3.2078,1821.1,1820.8,1.4139]
[1743664190275,4.30616,1821.1,1821.0,1.09838]
[1743664190688,5.71266,1821.1,1821.0,1.80078]
[1743664192883,5.71266,1821.1,1821.0,0.7024]
[1743664193076,5.71266,1821.1,1821.0,1.80078]
[1743664193983,3.2078,1821.1,1821.0,1.80078]
[1743664194171,5.00503,1821.3,1821.2,1.09826]
[1743664195076,5.00503,1821.3,1821.1,1.4484]
[1743664195077,1.09826,1821.2,1821.1,2.54669]
[1743664195283,2.52446,1821.2,1821.1,2.54669]
[1743664195475,2.52446,1821.2,1821.1,1.09829]
[1743664196686,2.52446,1821.2,1821.1,2.55179]
[1743664197684,1.4262,1821.2,1821.1,2.55179]
[1743664197885,5.00505,1821.3,1821.2,1.09826]
[1743664198087,5.00505,1821.3,1821.2,2.55176]
[1743664200685,5.00505,1821.3,1821.0,4.19845]
[1743664200686,1.09826,1821.2,1821.1,1.09827]
[1743664201084,1.09849,1820.9,1820.8,1.09844]
[1743664201276,1.09849,1820.9,1820.8,2.50994]
[1743664201479,1.0985,1820.8,1820.7,0.6988]
[1743664201683,1.0985,1820.8,1820.7,1.79731]
[1743664201684,3.2335,1820.8,1820.7,1.79731]
[1743664202177,6.8238,1821.1,1820.9,1.09841]
[1743664202486,2.74613,1820.9,1820.6,1.09857]
[1743664202689,1.09861,1820.7,1820.6,1.09857]
[1743664203080,0.54251,1820.8,1820.6,1.09857]
[1743664203288,0.54251,1820.8,1820.6,2.55407]
[1743664203483,1.09861,1820.7,1820.6,2.55407]
[1743664203887,5.25706,1820.8,1820.7,1.09856]
[1743664204087,5.25706,1820.8,1820.7,2.55406]
[1743664204590,5.25706,1820.8,1820.7,1.4555]
[1743664204894,4.71455,1820.8,1820.7,2.55406]
[1743664205991,3.616,1820.8,1820.7,2.55406]
[1743664206392,4.7145,1820.8,1820.7,2.55406]
[1743664209995,3.2078,1820.9,1820.8,1.0985]
[1743664210195,1.09835,1821.1,1821.0,1.09832]
[1743664210398,4.30615,1821.1,1821.0,2.51142]
[1743664210595,0.7513,1821.2,1821.1,1.09832]
[1743664210796,1.84956,1821.2,1821.1,3.23462]
[1743664211107,0.7513,1821.2,1821.1,3.23462]
[1743664211403,1.84956,1821.2,1821.1,3.23462]
[1743664213698,1.09847,1820.9,1820.8,1.09843]
[1743664213896,1.0985,1820.8,1820.7,2.48042]
[1743664214092,1.0985,1820.8,1820.5,2.75492605]
[1743664214093,3.2078,1820.8,1820.5,0.70604605]
[1743664214297,1.09862,1820.6,1820.5,1.80467605]
[1743664215003,2.60502,1820.6,1820.5,1.80467605]
[1743664215603,2.60502,1820.6,1820.5,0.70604605]
[1743664215796,5.81282,1820.6,1820.5,0.00824605]
[1743664215995,5.81282,1820.6,1820.5,1.10692605]
[1743664216201,5.81282,1820.6,1820.5,1.43134605]
[1743664216805,27.22838974,1820.6,1820.5,0.00824605]
[1743664220398,29.72838974,1820.6,1820.5,0.00824605]
[1743664220600,29.72838974,1820.6,1820.5,1e-08]
[1743664223607,25.72198974,1820.6,1820.5,1e-08]
[1743664223812,24.62336974,1820.6,1820.5,1.09868001]
[1743664224007,25.72198974,1820.6,1820.5,1.09868001]
[1743664224414,25.72198974,1820.6,1820.5,2.53288001]
[1743664225607,28.22198974,1820.6,1820.5,1e-08]
[1743664225814,29.72508974,1820.6,1820.5,1e-08]
[1743664226605,27.22508974,1820.6,1820.5,1e-08]
[1743664227504,25.72198974,1820.6,1820.5,1e-08]
[1743664227711,29.33898974,1820.6,1820.5,1e-08]
[1743664227906,30.84608974,1820.6,1820.5,1e-08]
[1743664228301,24.62336974,1820.6,1820.5,1.09868001]
[1743664228509,21.41556974,1820.6,1820.5,3.28468001]
[1743664228709,22.51418974,1820.6,1820.5,2.18600001]
[1743664228910,25.72198974,1820.6,1820.5,1.45150001]
[1743664229110,27.22908974,1820.6,1820.5,1.45150001]
[1743664229309,27.22908974,1820.6,1820.5,1e-08]
[1743664230812,29.72908974,1820.6,1820.5,1e-08]
[1743664231904,35.69308974,1820.6,1820.5,1e-08]
[1743664237117,36.81008974,1820.6,1820.5,1e-08]
[1743664237718,36.81008974,1820.6,1820.5,1.47500001]
[1743664238616,36.81008974,1820.6,1820.5,1e-08]
[1743664239609,35.30298974,1820.6,1820.5,1e-08]
[1743664240411,35.30298974,1820.6,1820.5,1.39210001]
[1743664240911,35.30298974,1820.6,1820.5,1e-08]
[1743664240912,36.82328974,1820.6,1820.5,1e-08]
[1743664243109,39.32328974,1820.6,1820.5,1e-08]
[1743664244112,36.82328974,1820.6,1820.5,1e-08]
[1743664244614,40.31768302,1820.6,1820.5,1e-08]
[1743664244919,1.0992,1819.7,1819.6,1.09916]
[1743664245107,1.0992,1819.7,1819.6,3.27689574]
[1743664246208,1.0992,1819.7,1819.6,3.98449574]
[1743664247620,1.0992,1819.7,1819.6,2.9124]
[1743664248520,4.307,1819.7,1819.6,2.9124]
[1743664248922,4.307,1819.7,1819.6,2.2208]
[1743664249115,5.0183,1819.7,1819.6,1.50777263]
[1743664249319,6.4733,1819.7,1819.6,1.50777263]
[1743664250222,1.09923,1819.6,1819.5,0.00824605]
[1743664250420,2.61673,1819.6,1819.5,0.00824605]
[1743664251630,8.58073,1819.6,1819.5,0.00824605]
[1743664252128,11.08073,1819.6,1819.5,0.00824605]
[1743664253832,11.08073,1819.6,1819.5,6.05e-06]
[1743664254523,11.17680404,1819.6,1819.5,6.05e-06]
[1743664254926,11.08073,1819.6,1819.5,6.05e-06]
[1743664255229,11.08073,1819.6,1817.4,60.00505769]
[1743664255230,1.09981,1818.7,1818.6,1.09978]
[1743664255426,1.09981,1818.7,1818.6,1.85118]
[1743664255723,1.09987,1818.6,1818.5,1.09984]
[1743664255929,1.09987,1818.6,1818.5,1.85124]
[1743664256122,4.30767,1818.6,1818.5,1.85124]
[1743664256326,4.30763,1818.6,1818.5,0.7514]
[1743664256630,4.30763,1818.6,1818.5,1.85129]
[1743664257226,4.30763,1818.6,1818.5,3.25609]